bitfinex/quotes_BTCUSD_20251117
["timestamp","ask_amount","ask_price","bid_price","bid_amount"]
[1763406135625,0.03646,92813.0,92810.0,0.04341874]
[1763406135826,0.25194774,92813.0,92809.0,0.09660332]
[1763406136081,0.25194774,92813.0,92810.0,0.04341874]
[1763406136393,0.05154,92811.0,92810.0,0.04341874]
[1763406136754,0.03646,92813.0,92810.0,0.04341874]
[1763406136974,0.03646,92813.0,92812.0,0.04341874]
[1763406137373,0.088,92813.0,92798.0,0.05261902]
[1763406137575,0.088,92813.0,92810.0,0.04341874]
[1763406137961,2.0,92812.0,92810.0,0.04341874]
[1763406138163,0.2154994,92808.0,92798.0,0.04341874]
[1763406138364,2.0,92812.0,92780.0,0.07456]
[1763406138365,0.21548937,92812.0,92797.0,0.04341874]
[1763406138562,0.21549974,92808.0,92798.0,0.09660332]
[1763406138763,2.0,92806.0,92799.0,0.04341874]
[1763406139010,0.02553171,92805.0,92799.0,0.04341874]
[1763406139231,2.0,92807.0,92801.0,0.04341874]
[1763406139364,2.0,92812.0,92803.0,0.04341874]
[1763406139564,2.0,92812.0,92804.0,0.02155079]
[1763406142055,2.0,92817.0,92804.0,0.02155079]
[1763406142261,0.2154876,92813.0,92805.0,0.04341874]
[1763406142417,0.21550397,92806.0,92798.0,0.09660332]
[1763406142619,0.21551131,92803.0,92799.0,0.04341874]
[1763406142818,0.03692,92805.0,92799.0,0.04341874]
[1763406143045,0.21550833,92804.0,92799.0,0.04341874]
[1763406143204,2.0,92803.0,92799.0,0.04341874]
[1763406143433,2.0,92804.0,92799.0,0.04341874]
[1763406144046,0.07402,92803.0,92791.0,0.03785]
[1763406144265,2.0,92802.0,92794.0,0.04341874]
[1763406144960,2.0,92804.0,92794.0,0.04341874]
[1763406146192,2.0,92802.0,92796.0,0.04341874]
[1763406146394,0.02693936,92801.0,92796.0,0.04341874]
[1763406146606,2.0,92801.0,92794.0,0.04341874]
[1763406146808,2.0,92802.0,92794.0,0.06497185]
[1763406147008,0.04973,92795.0,92779.0,0.09660332]
[1763406147244,0.00042,92794.0,92780.0,0.04381874]
[1763406147468,0.00042,92794.0,92793.0,0.14002206]
[1763406148036,0.02693994,92799.0,92794.0,0.04341874]
[1763406148253,0.0200714,92798.0,92796.0,0.04341874]
[1763406148464,2.0,92804.0,92797.0,0.02155242]
[1763406148673,2.0,92804.0,92793.0,0.09660332]
[1763406148674,0.21552653,92796.0,92795.0,0.04341874]
[1763406148884,0.21552653,92796.0,92786.0,0.0002287]
[1763406148885,0.04973,92794.0,92786.0,0.0002287]
[1763406149035,0.21554119,92790.0,92786.0,0.0002287]
[1763406149246,0.25885743,92787.0,92786.0,0.0002287]
[1763406149458,0.25885743,92787.0,92778.0,0.01]
[1763406149459,2.21556602,92779.0,92778.0,0.01]
[1763406149657,2.27853224,92779.0,92778.0,0.01]
[1763406149878,2.11305622,92779.0,92778.0,0.01]
[1763406150421,2.11305622,92779.0,92778.0,0.01008056]
[1763406150641,2.12662972,92779.0,92778.0,0.01008056]
[1763406151267,2.21606834,92778.0,92777.0,31.52534986]
[1763406151466,2.30969456,92778.0,92777.0,31.52539383]
[1763406151676,2.3428358,92778.0,92777.0,30.11974059]
[1763406151851,2.34361112,92778.0,92777.0,29.98408878]
[1763406152096,2.34361112,92778.0,92777.0,29.96903586]
[1763406152297,2.3428358,92778.0,92777.0,28.98623209]
[1763406152427,2.34628856,92778.0,92777.0,28.98623209]
[1763406152628,2.36781058,92778.0,92777.0,28.78423209]
[1763406152831,2.36781058,92778.0,92777.0,26.07464557]
[1763406153057,2.39658184,92778.0,92777.0,24.90762256]
[1763406153260,2.3428358,92778.0,92777.0,23.54143516]
[1763406153576,2.34361112,92778.0,92777.0,23.48204631]
[1763406153994,2.3428358,92778.0,92777.0,23.48204631]
[1763406154196,2.3428358,92778.0,92777.0,22.53092254]
[1763406155296,2.3428358,92778.0,92777.0,21.57979877]
[1763406155504,2.34361112,92778.0,92777.0,21.57979877]
[1763406155712,2.34318,92778.0,92777.0,21.58005617]
[1763406156128,2.34240468,92778.0,92777.0,21.58005617]
[1763406156264,2.34240468,92778.0,92777.0,20.57197409]
[1763406156486,2.34318485,92778.0,92777.0,20.57197409]
[1763406156857,2.34240468,92778.0,92777.0,20.57197409]
[1763406157290,2.34240468,92778.0,92777.0,19.55065353]
[1763406157723,2.34227078,92778.0,92777.0,19.55065353]
[1763406157939,2.4388741,92778.0,92777.0,19.55065353]
[1763406158157,2.4157637,92778.0,92777.0,19.55065353]
[1763406158367,2.40573286,92778.0,92777.0,19.55065353]
[1763406159236,2.40573286,92778.0,92777.0,18.82526301]
[1763406159620,2.41569849,92778.0,92777.0,18.82526301]
[1763406159978,2.41569849,92778.0,92777.0,18.09987249]
[1763406160630,2.4481529,92778.0,92777.0,18.09987249]
[1763406161448,2.4481529,92778.0,92777.0,17.37448197]
[1763406161639,2.29592754,92778.0,92777.0,17.37448197]
[1763406161850,2.21814422,92778.0,92777.0,17.37448197]
[1763406162052,2.13463859,92778.0,92777.0,17.37448197]
[1763406162479,2.20762859,92778.0,92777.0,16.64909145]
[1763406163308,2.21758419,92778.0,92777.0,16.64909145]
[1763406163925,2.24129258,92778.0,92777.0,16.15945165]
[1763406164329,2.24051085,92778.0,92777.0,16.14954822]
[1763406164527,2.21836592,92778.0,92777.0,16.14954822]
[1763406164723,2.21758419,92778.0,92777.0,16.14954822]
[1763406164934,2.21758419,92778.0,92777.0,15.40416382]
[1763406165172,2.24051566,92778.0,92777.0,14.95545929]
[1763406165632,2.24051566,92778.0,92777.0,14.94976857]
[1763406166095,2.21758419,92778.0,92777.0,14.94976857]
[1763406166524,2.21836686,92778.0,92777.0,14.94976857]
[1763406166678,2.24052358,92778.0,92777.0,14.94976857]
[1763406167028,2.20762859,92778.0,92777.0,14.94976857]
[1763406167409,2.21758327,92778.0,92777.0,14.94976857]
[1763406167811,2.24051857,92778.0,92777.0,14.94976857]
[1763406168035,2.24051857,92778.0,92777.0,14.45500061]
[1763406168212,2.2413008,92778.0,92777.0,14.30589844]
[1763406168619,2.24051857,92778.0,92777.0,14.30589844]
[1763406170411,2.21758327,92778.0,92777.0,14.30589844]
[1763406170793,2.20762859,92778.0,92777.0,14.30589844]
[1763406172499,2.21759866,92778.0,92777.0,14.30589844]
[1763406173874,2.24058492,92778.0,92777.0,14.30589844]
[1763406175310,2.2413516,92778.0,92777.0,14.30589844]
[1763406175542,2.24058492,92778.0,92777.0,14.30589844]
[1763406175788,2.24058492,92778.0,92777.0,13.0076383]
[1763406176027,2.2413516,92778.0,92777.0,11.70937816]
[1763406176277,2.24058492,92778.0,92777.0,9.97836464]
[1763406176971,2.24136233,92778.0,92777.0,9.97836464]
[1763406177235,2.24058492,92778.0,92777.0,9.97836464]
[1763406177715,2.16759492,92778.0,92777.0,9.97836464]
[1763406177950,2.24058492,92778.0,92777.0,9.97836464]
[1763406178659,2.14877492,92778.0,92777.0,9.97836464]
[1763406178887,2.24058492,92778.0,92777.0,9.97836464]
[1763406181298,2.24136233,92778.0,92777.0,9.97836464]
[1763406181518,2.24058492,92778.0,92777.0,9.97836464]
[1763406181723,2.26929845,92778.0,92777.0,9.97836464]
[1763406181901,2.24058492,92778.0,92777.0,9.97836464]
[1763406182401,2.24136576,92778.0,92777.0,9.97836464]
[1763406182811,2.24058492,92778.0,92777.0,9.97836464]
[1763406183588,2.24136576,92778.0,92777.0,9.43684795]
[1763406183846,2.24136576,92778.0,92777.0,9.43011277]
[1763406184251,2.24058492,92778.0,92777.0,9.43011277]
[1763406184450,2.24136576,92778.0,92777.0,9.43011277]
[1763406185645,2.32298269,92778.0,92777.0,8.21681987]
[1763406185816,0.29840081,92778.0,92777.0,8.00745592]
[1763406186009,2.2847845,92778.0,92777.0,8.00745592]
[1763406186284,2.24058492,92778.0,92777.0,8.00745592]
[1763406187687,2.23061485,92778.0,92777.0,8.00745592]
[1763406187877,2.24065451,92778.0,92777.0,8.00745592]
[1763406190907,2.24065451,92778.0,92777.0,7.38193489]
[1763406191107,2.28407325,92778.0,92777.0,7.21875791]
[1763406191332,2.28407325,92778.0,92777.0,3.07049933]
[1763406191518,2.28407325,92778.0,92777.0,2.69528521]
[1763406191709,2.28407325,92778.0,92777.0,2.66012375]
[1763406191956,2.28407325,92778.0,92777.0,2.05417899]
[1763406192158,2.29522631,92778.0,92777.0,1.40499582]
[1763406192360,2.28407325,92778.0,92777.0,1.39837103]
[1763406194355,2.24065451,92778.0,92777.0,1.39837103]
[1763406194554,2.27920181,92778.0,92777.0,1.39837103]
[1763406195006,2.24065451,92778.0,92777.0,1.39837103]
[1763406197754,2.24065451,92778.0,92777.0,1.3959219]
[1763406198102,2.24078165,92778.0,92777.0,1.3959219]
[1763406199406,2.29861369,92778.0,92777.0,1.3959219]
[1763406199612,2.24092864,92778.0,92777.0,1.3959219]
[1763406200127,2.04515331,92778.0,92777.0,1.3959219]
[1763406200339,2.07761109,92778.0,92777.0,1.3959219]
[1763406201801,2.12102983,92778.0,92777.0,1.23378314]
[1763406202351,2.12102983,92778.0,92777.0,1.07164438]
[1763406202955,2.12102983,92778.0,92777.0,1.05005838]
[1763406203567,2.07804109,92778.0,92777.0,1.05005838]
[1763406203971,2.08004109,92778.0,92777.0,1.05005838]
[1763406204153,2.08005189,92778.0,92777.0,1.05005838]
[1763406204354,2.07805189,92778.0,92777.0,1.05005838]
[1763406204698,2.08005189,92778.0,92777.0,1.05005838]
[1763406205287,2.05691864,92778.0,92777.0,1.05005838]
[1763406205506,2.08008432,92778.0,92777.0,0.97580838]
[1763406205685,2.09336855,92778.0,92777.0,0.97580838]
[1763406205886,2.1235353,92778.0,92777.0,0.97580838]
[1763406206531,2.13806576,92778.0,92777.0,0.97580838]
[1763406206655,2.08011656,92778.0,92777.0,0.97580838]
[1763406207027,2.1187558,92778.0,92777.0,0.97580838]
[1763406207441,2.08011656,92778.0,92777.0,0.97580838]
[1763406207642,2.07811656,92778.0,92777.0,0.97580838]
[1763406207962,2.1235353,92778.0,92777.0,0.97580838]
[1763406209250,2.1215353,92778.0,92777.0,0.97580838]
[1763406209473,2.1235353,92778.0,92777.0,0.97580838]
[1763406209688,2.1235353,92778.0,92777.0,0.82303338]
[1763406210123,2.1215353,92778.0,92777.0,0.82303338]
[1763406210337,2.1235353,92778.0,92777.0,0.82303338]
[1763406210777,2.1215353,92778.0,92777.0,0.82303338]
[1763406211206,2.10036874,92778.0,92777.0,0.82303338]
[1763406211447,2.123583,92778.0,92777.0,0.82303338]
[1763406211715,2.12364278,92778.0,92777.0,0.53009506]
[1763406211935,2.12364278,92778.0,92760.0,0.0004]
[1763406211936,0.04341874,92770.0,92760.0,0.0004]
[1763406212145,2.11626518,92770.0,92760.0,0.0004]
[1763406212362,2.08931682,92770.0,92760.0,0.0004]
[1763406212576,2.06610256,92770.0,92760.0,0.0004]
[1763406212793,2.08931196,92770.0,92760.0,0.0004]
[1763406213008,2.08931196,92770.0,92750.0,0.02004189]
[1763406213009,2.05481547,92751.0,92750.0,0.01554189]
[1763406213211,2.1082514,92751.0,92750.0,0.01554189]
[1763406213506,2.15707275,92751.0,92750.0,0.01554189]
[1763406213703,2.1184014,92751.0,92750.0,0.01554189]
[1763406214213,2.13494329,92751.0,92750.0,0.01554189]
[1763406215127,2.13852758,92751.0,92750.0,0.01554189]
[1763406215269,2.13494329,92751.0,92750.0,0.01554189]
[1763406216302,2.13853089,92751.0,92750.0,0.01554189]
[1763406217304,2.17720224,92751.0,92750.0,0.01554189]
[1763406218906,2.13853089,92751.0,92750.0,0.01554189]
[1763406219259,2.13853089,92751.0,92750.0,0.01631421]
[1763406220217,2.03493421,92749.0,92716.0,0.00292572]
[1763406220355,2.12651879,92741.0,92716.0,0.00292572]
[1763406220561,2.17995472,92741.0,92716.0,0.00292572]
[1763406220759,2.25591232,92741.0,92716.0,0.00292572]
[1763406221575,2.25604016,92741.0,92716.0,0.00292572]
[1763406221779,2.28851164,92741.0,92716.0,0.00292572]
[1763406222031,1.99151547,92738.0,92716.0,0.00292572]
[1763406222229,2.05016336,92731.0,92716.0,0.00292572]
[1763406222454,2.0456714,92731.0,92716.0,0.00292572]
[1763406222682,2.15237929,92731.0,92716.0,0.00292572]
[1763406222996,2.0944514,92731.0,92716.0,0.00292572]
[1763406223225,2.1414588,92731.0,92716.0,0.00292572]
[1763406223463,2.17393264,92731.0,92716.0,0.00292572]
[1763406223811,2.17034398,92731.0,92716.0,0.00292572]
[1763406224267,2.12692524,92731.0,92716.0,0.00292572]
[1763406224697,2.12792524,92731.0,92716.0,0.00292572]
[1763406224842,2.17493264,92731.0,92716.0,0.00292572]
[1763406225044,2.17034398,92731.0,92716.0,0.00292572]
[1763406225281,2.17393264,92731.0,92716.0,0.00292572]
[1763406225474,2.17393264,92731.0,92724.0,0.11247901]
[1763406225475,2.05461421,92725.0,92724.0,0.11247901]
[1763406225674,2.10805014,92725.0,92724.0,0.10684501]
[1763406225875,2.1606588,92725.0,92724.0,0.06466539]
[1763406226276,2.1606588,92725.0,92724.0,0.05934714]
[1763406226475,2.1374494,92725.0,92724.0,0.05934714]
[1763406226725,1.99151547,92723.0,92716.0,0.00292572]
[1763406226862,0.5,92724.0,92716.0,0.00292572]
[1763406226863,2.63202753,92721.0,92716.0,0.00292572]
[1763406227066,2.18536486,92721.0,92716.0,0.00292572]
[1763406227264,2.23437486,92721.0,92716.0,0.00292572]
[1763406228448,2.0953528,92721.0,92716.0,0.00292572]
[1763406228934,2.19650151,92721.0,92716.0,0.00292572]
[1763406229478,2.13777154,92721.0,92716.0,0.00292572]
[1763406231376,2.13977154,92721.0,92716.0,0.00292572]
[1763406231712,2.03542421,92717.0,92716.0,0.00292572]
[1763406231918,2.03542421,92717.0,92716.0,1e-08]
[1763406231919,2.13777154,92717.0,92716.0,1e-08]
[1763406232147,2.14136065,92717.0,92716.0,1e-08]
[1763406232421,0.01999998,92710.0,92690.0,0.011]
[1763406232620,2.13712879,92701.0,92690.0,0.011]
[1763406232939,2.19046612,92701.0,92690.0,0.011]
[1763406233148,2.22393117,92701.0,92690.0,0.011]
[1763406233317,2.22393117,92701.0,92700.0,0.20245805]
[1763406233518,2.22406284,92701.0,92700.0,0.20245805]
[1763406234439,2.26748158,92701.0,92700.0,0.19610524]
[1763406234614,2.3251245,92701.0,92700.0,0.19610524]
[1763406234828,2.26848158,92701.0,92700.0,0.19610524]
[1763406235309,2.26848158,92701.0,92666.0,49.88592258]
[1763406235310,0.01999998,92680.0,92666.0,49.88592258]
[1763406235509,2.03186547,92667.0,92666.0,49.88592258]
[1763406235708,2.05184491,92667.0,92666.0,49.88592258]
[1763406236006,2.08482598,92667.0,92666.0,49.88592258]
[1763406236383,2.08433598,92667.0,92666.0,49.88592258]
[1763406236839,2.04411758,92667.0,92666.0,49.88592258]
[1763406237244,2.10824801,92667.0,92666.0,49.88592258]
[1763406237450,2.1312515,92667.0,92666.0,49.88592258]
[1763406237643,2.05874801,92667.0,92666.0,49.88592258]
[1763406238888,2.05874801,92667.0,92666.0,49.98192258]
[1763406239908,2.05873441,92667.0,92666.0,49.98192258]
[1763406240099,2.03876857,92667.0,92666.0,49.98192258]
[1763406240498,2.03876857,92667.0,92666.0,49.88592258]
[1763406240702,2.05873334,92667.0,92666.0,49.88592258]
[1763406242506,2.05922334,92667.0,92666.0,49.88592258]
[1763406242937,2.05873334,92667.0,92666.0,49.8868964]
[1763406243501,2.05873334,92667.0,92666.0,49.9864464]
[1763406243678,2.0587528,92667.0,92666.0,49.9864464]
[1763406244202,2.0587528,92667.0,92666.0,49.79047935]
[1763406244569,2.1082528,92667.0,92666.0,49.79047935]
[1763406244991,2.13175327,92667.0,92666.0,49.79047935]
[1763406245342,2.08077592,92667.0,92666.0,49.79047935]
[1763406245557,2.10954453,92667.0,92666.0,49.79047935]
[1763406245941,2.08077592,92667.0,92666.0,49.79047935]
[1763406246084,2.10953473,92667.0,92666.0,49.79047935]
[1763406246299,2.08077592,92667.0,92666.0,49.79047935]
[1763406246920,2.08434202,92667.0,92666.0,49.79047935]
[1763406247374,2.08028592,92667.0,92666.0,49.79047935]
[1763406247533,2.08077592,92667.0,92666.0,49.79047935]
[1763406247932,2.11913821,92667.0,92666.0,49.79047935]
[1763406248132,2.08128592,92667.0,92666.0,49.79047935]
[1763406248739,2.03178592,92667.0,92666.0,49.79047935]
[1763406249644,2.02179959,92667.0,92666.0,49.79047935]
[1763406249765,2.02079959,92667.0,92666.0,49.79047935]
[1763406250420,1.99778912,92667.0,92666.0,49.89002935]
[1763406251283,1.96529805,92667.0,92666.0,49.89002935]
[1763406251883,1.9629011,92667.0,92666.0,49.89002935]
[1763406252108,0.03474626,92667.0,92666.0,49.89002935]
[1763406252532,0.01097894,92667.0,92666.0,49.89002935]
[1763406252751,0.00864811,92667.0,92666.0,49.99369873]
[1763406252911,2.0,92689.0,92666.0,49.99369873]
[1763406253124,0.02878063,92694.0,92666.0,49.99369873]
[1763406253125,0.03247841,92678.0,92667.0,0.04946]
[1763406253321,2.0,92676.0,92667.0,0.04946]
[1763406253607,2.0,92674.0,92668.0,0.09955]
[1763406253814,0.02003148,92673.0,92668.0,0.09955]
[1763406254019,0.02003148,92672.0,92668.0,0.20321938]
[1763406254233,0.02003148,92671.0,92668.0,0.20321938]
[1763406254382,0.01485716,92673.0,92670.0,0.09660332]
[1763406254545,0.02004643,92672.0,92671.0,0.09955]
[1763406254949,0.02004643,92672.0,92671.0,0.18362172]
[1763406255150,0.02004643,92672.0,92671.0,0.22704046]
[1763406255418,0.02004643,92672.0,92671.0,0.16204]
[1763406255578,2.02004643,92672.0,92671.0,0.16204]
[1763406255803,2.0,92671.0,92667.0,0.04946]
[1763406255963,2.0,92669.0,92666.0,49.78994532]
[1763406256169,2.54315211,92668.0,92667.0,0.09955]
[1763406256386,2.04315211,92668.0,92667.0,0.09955]
[1763406256606,2.04315211,92668.0,92667.0,0.16204]
[1763406256854,2.04315211,92668.0,92667.0,0.25864332]
[1763406257022,2.02004643,92668.0,92667.0,0.25864332]
[1763406258255,0.02004643,92668.0,92667.0,0.25864332]
[1763406258658,0.02004643,92670.0,92667.0,0.25864332]
[1763406258834,0.02004643,92669.0,92668.0,0.11578242]
[1763406259192,2.02004643,92669.0,92668.0,0.11578242]
[1763406259337,0.02004643,92669.0,92668.0,0.19847874]
[1763406259697,0.02006807,92669.0,92668.0,0.15506]
[1763406260750,2.02006807,92669.0,92668.0,0.06086]
[1763406260960,2.02006807,92669.0,92666.0,49.78994532]
[1763406261158,2.04318188,92668.0,92667.0,0.19080332]
[1763406261363,1.86899666,92668.0,92667.0,0.15506]
[1763406261739,1.90148052,92668.0,92667.0,0.15506]
[1763406261938,1.90148052,92668.0,92666.0,49.78994532]
[1763406262167,1.89211125,92667.0,92666.0,49.78994532]
[1763406263039,1.89211125,92667.0,92666.0,49.88414532]
[1763406263370,1.86899666,92667.0,92666.0,49.88414532]
[1763406264764,0.02006807,92667.0,92666.0,49.88414532]
[1763406265245,0.01952969,92667.0,92666.0,49.88511914]
[1763406265450,2.0,92672.0,92666.0,49.88511914]
[1763406265650,2.0,92672.0,92671.0,0.09660332]
[1763406265786,2.0,92672.0,92671.0,0.15746332]
[1763406265982,2.0,92672.0,92671.0,0.25166332]
[1763406266300,2.0,92672.0,92671.0,0.06086]
[1763406267222,2.0,92672.0,92671.0,0.15506]
[1763406268708,2.0,92672.0,92671.0,0.06086]
[1763406268905,2.0,92672.0,92671.0,0.15506]
[1763406270468,1.82137108,92672.0,92666.0,49.78994532]
[1763406270814,1.82137108,92672.0,92671.0,0.00083059]
[1763406271225,1.82137108,92672.0,92671.0,0.06639059]
[1763406271848,1.82137108,92672.0,92671.0,0.16238059]
[1763406272045,1.82137108,92672.0,92671.0,0.06639059]
[1763406272269,1.82137108,92672.0,92671.0,0.00083059]
[1763406272668,1.82137108,92672.0,92671.0,0.16238059]
[1763406275475,1.82137108,92672.0,92671.0,0.21082059]
[1763406276992,2.16446069,92672.0,92671.0,0.21082059]
[1763406278171,0.01423049,92673.0,92671.0,0.21082059]
[1763406278347,0.01423049,92673.0,92672.0,0.21416902]
[1763406278576,0.02696784,92703.0,92673.0,0.00920028]
[1763406278779,0.323,92700.0,92687.0,0.09660332]
[1763406278920,2.0,92698.0,92687.0,0.09660332]
[1763406279121,0.323,92695.0,92688.0,0.09599]
[1763406279389,2.0,92697.0,92689.0,0.02157753]
[1763406279592,2.323,92697.0,92696.0,0.114]
[1763406279790,2.0,92697.0,92696.0,0.114]
[1763406279983,2.0,92697.0,92696.0,0.20999]
[1763406280180,2.323,92697.0,92696.0,0.20999]
[1763406280724,2.32313211,92697.0,92696.0,0.20999]
[1763406288271,2.32313211,92697.0,92685.0,0.04844]
[1763406288474,2.32313211,92697.0,92686.0,0.19259332]
[1763406288475,2.0,92693.0,92686.0,0.19259332]
[1763406288673,0.00013211,92697.0,92687.0,0.09599]
[1763406288674,0.323,92690.0,92687.0,0.09599]
[1763406288898,2.323,92688.0,92687.0,0.09599]
[1763406289275,2.323,92688.0,92687.0,0.16155]
[1763406290284,2.323,92688.0,92687.0,0.06556]
[1763406290717,2.323,92688.0,92687.0,0.16155]
[1763406291020,2.323,92688.0,92687.0,0.06556]
[1763406291222,0.323,92686.0,92685.0,0.04844]
[1763406291424,2.323,92686.0,92685.0,0.04844]
[1763406291567,2.323,92686.0,92685.0,0.114]
[1763406291973,2.323,92686.0,92685.0,0.06556]
[1763406292194,2.323,92686.0,92685.0,0.16155]
[1763406293557,2.323,92686.0,92685.0,0.06556]
[1763406293724,0.323,92684.0,92681.0,0.04844]
[1763406293925,2.323,92682.0,92681.0,0.04844]
[1763406294125,2.323,92682.0,92681.0,0.114]
[1763406294324,2.323,92682.0,92681.0,0.20999]
[1763406294539,2.323,92682.0,92681.0,0.21053418]
[1763406295315,2.0,92682.0,92681.0,0.21053418]
[1763406295516,2.0,92696.0,92681.0,0.21053418]
[1763406295874,2.0,92696.0,92695.0,0.09660332]
[1763406296077,2.0,92696.0,92695.0,0.20558206]
[1763406296278,0.00013211,92697.0,92696.0,0.04341874]
[1763406296423,0.00013211,92697.0,92696.0,0.20496874]
[1763406296623,0.00013211,92697.0,92696.0,0.22541218]
[1763406297080,0.00013211,92697.0,92696.0,0.26683693]
[1763406297373,0.00013211,92697.0,92696.0,0.24639349]
[1763406297677,0.00013211,92697.0,92696.0,0.20496874]
[1763406298307,0.0524,92700.0,92696.0,0.22654464]
[1763406298523,0.0524,92700.0,92699.0,0.06556]
[1763406298735,0.0524,92700.0,92699.0,0.0871352]
[1763406298916,0.0524,92700.0,92699.0,0.22654394]
[1763406299242,0.0524,92700.0,92699.0,0.24169224]
[1763406299452,0.0524,92700.0,92699.0,0.20496874]
[1763406299573,0.0524,92700.0,92699.0,0.16155]
[1763406300190,2.3754,92700.0,92699.0,0.16155]
[1763406300427,2.323,92699.0,92696.0,0.00043979]
[1763406300601,2.323,92697.0,92696.0,0.00043979]
[1763406300804,2.34305626,92697.0,92696.0,0.00043979]
[1763406301010,2.36615486,92697.0,92696.0,0.00043979]
[1763406301609,2.36664486,92697.0,92696.0,0.00043979]
[1763406301870,2.38010288,92697.0,92696.0,0.00043979]
[1763406302214,2.37961288,92697.0,92696.0,0.00043979]
[1763406302417,2.38010288,92697.0,92696.0,0.00043979]
[1763406302666,2.42911288,92697.0,92696.0,0.00043979]
[1763406302866,2.38010288,92697.0,92696.0,0.00043979]
[1763406303233,2.42911288,92697.0,92696.0,0.00043979]
[1763406303963,2.43011288,92697.0,92696.0,0.00043979]
[1763406304363,2.42911288,92697.0,92696.0,0.00043979]
[1763406304951,2.37766945,92697.0,92696.0,0.00043979]
[1763406306573,2.37717945,92697.0,92696.0,0.00043979]
[1763406307180,2.37718013,92697.0,92696.0,0.00043979]
[1763406307602,2.37618013,92697.0,92696.0,0.00043979]
[1763406307798,2.42568013,92697.0,92696.0,0.00043979]
[1763406308006,2.42668013,92697.0,92696.0,0.00043979]
[1763406308403,2.42617013,92697.0,92696.0,0.00043979]
[1763406308859,2.42717013,92697.0,92696.0,0.00043979]
[1763406309839,2.48489718,92697.0,92696.0,0.00043979]
[1763406310044,2.42717013,92697.0,92696.0,0.00043979]
[1763406310857,2.45965624,92697.0,92696.0,0.00043979]
[1763406311333,0.04341874,92693.0,92692.0,0.00022919]
[1763406311614,2.54391322,92693.0,92692.0,0.00022919]
[1763406311842,0.00999999,92680.0,92655.0,0.04699]
[1763406312035,0.323,92672.0,92655.0,0.04699]
[1763406312237,2.00985,92667.0,92655.0,0.04699]
[1763406312443,2.37600486,92667.0,92655.0,0.04699]
[1763406313014,2.42599486,92667.0,92645.0,0.04699]
[1763406313209,2.47451571,92667.0,92633.0,0.09272]
[1763406313412,2.43602168,92667.0,92638.0,0.04699]
[1763406313619,2.43602168,92667.0,92639.0,0.3956315]
[1763406314021,2.49476273,92667.0,92639.0,0.3029115]
[1763406314226,2.43702168,92667.0,92639.0,0.3029115]
[1763406314436,2.48387394,92667.0,92639.0,0.3029115]
[1763406314603,2.48287394,92667.0,92666.0,49.45483351]
[1763406314791,2.48044042,92667.0,92666.0,49.45483351]
[1763406314989,2.48387394,92667.0,92666.0,49.45483351]
[1763406315227,2.48387394,92667.0,92666.0,49.44920351]
[1763406315403,2.48387394,92667.0,92666.0,49.43132251]
[1763406316241,2.48387394,92667.0,92666.0,49.39982667]
[1763406316460,2.54326771,92667.0,92666.0,49.21616591]
[1763406316667,0.4885081,92667.0,92666.0,44.71067208]
[1763406316806,0.4905081,92667.0,92666.0,44.36588208]
[1763406317007,2.52890107,92667.0,92666.0,44.36588208]
[1763406317230,2.52890107,92667.0,92666.0,43.21597506]
[1763406317231,0.4885081,92667.0,92666.0,43.21597506]
[1763406317462,0.52690107,92667.0,92666.0,40.21199106]
[1763406317663,0.78105307,92667.0,92666.0,40.21199106]
[1763406317896,0.77761955,92667.0,92666.0,40.21199106]
[1763406318065,2.4885081,92667.0,92666.0,39.86094906]
[1763406318295,2.4885081,92667.0,92666.0,39.80685194]
[1763406318500,2.54526771,92667.0,92666.0,39.24519778]
[1763406318719,0.54526771,92667.0,92666.0,38.08552678]
[1763406318946,0.59526771,92667.0,92666.0,37.57647971]
[1763406319082,0.59526771,92667.0,92666.0,34.90686299]
[1763406319285,0.5415081,92667.0,92666.0,29.77161995]
[1763406319492,0.4915081,92667.0,92666.0,28.76330123]
[1763406319694,2.4915081,92667.0,92666.0,27.52597147]
[1763406319891,2.4915081,92667.0,92666.0,27.28506656]
[1763406320120,2.4885081,92667.0,92666.0,27.10608852]
[1763406320319,2.4885081,92667.0,92666.0,27.07361284]
[1763406320574,2.4915081,92667.0,92666.0,27.07361284]
[1763406320754,2.07166584,92667.0,92666.0,27.07361284]
[1763406320934,2.06181584,92667.0,92666.0,27.07361284]
[1763406321154,2.05865265,92667.0,92666.0,27.07361284]
[1763406321317,2.05601849,92667.0,92666.0,27.16781284]
[1763406321512,2.04599167,92667.0,92666.0,27.16781284]
[1763406321739,2.02305626,92667.0,92666.0,27.16781284]
[1763406321897,2.02005626,92667.0,92666.0,27.16781284]
[1763406322829,2.02005626,92667.0,92666.0,27.16855751]
[1763406323215,2.34505626,92667.0,92666.0,27.16855751]
[1763406323462,2.02205626,92667.0,92666.0,27.16855751]
[1763406323677,0.00861729,92667.0,92666.0,27.16855751]
[1763406323842,2.0,92692.0,92666.0,27.16855751]
[1763406324036,0.0524,92700.0,92683.0,0.0942]
[1763406324037,2.0,92687.0,92683.0,0.0942]
[1763406324238,0.02697278,92686.0,92683.0,0.0942]
[1763406324574,0.0324783,92698.0,92684.0,0.06332]
[1763406324790,0.02696958,92697.0,92692.0,0.06274]
[1763406325057,0.0524,92700.0,92692.0,0.06274]
[1763406325278,0.0524,92700.0,92699.0,0.06332]
[1763406325405,1.860374,92716.0,92699.0,0.06345211]
[1763406325601,1.860374,92711.0,92700.0,0.0942]
[1763406325804,0.323,92708.0,92700.0,0.0942]
[1763406326044,0.02696667,92707.0,92700.0,0.0942]
[1763406326458,0.323,92703.0,92699.0,0.00013211]
[1763406326695,2.21034213,92702.0,92701.0,0.02876]
[1763406326846,2.183374,92702.0,92701.0,0.02876]
[1763406327039,2.183374,92702.0,92701.0,0.09208]
[1763406327261,2.183374,92702.0,92701.0,0.18628]
[1763406328425,2.183374,92702.0,92701.0,0.02876]
[1763406329034,2.183374,92702.0,92701.0,0.18628]
[1763406329377,2.184374,92702.0,92701.0,0.18628]
[1763406330140,0.324,92702.0,92701.0,0.18628]
[1763406330346,1.860374,92732.0,92701.0,0.18628]
[1763406330502,0.01439776,92712.0,92711.0,0.02156]
[1763406330665,1.860374,92716.0,92711.0,0.02156]
[1763406330867,1.860374,92714.0,92710.0,0.09109]
[1763406331084,1.860374,92712.0,92710.0,0.09109]
[1763406331348,0.03247102,92718.0,92710.0,0.09109]
[1763406331349,1.88733951,92711.0,92710.0,0.09109]
[1763406331557,0.03247102,92718.0,92701.0,0.02876]
[1763406331558,1.860374,92717.0,92701.0,0.02876]
[1763406331765,1.860374,92715.0,92701.0,0.02876]
[1763406331987,1.860374,92713.0,92701.0,0.02876]
[1763406332220,0.323,92708.0,92701.0,0.02876]
[1763406332469,2.183374,92708.0,92707.0,0.0658]